bitfinex/quotes_BTCUSD_20250328
["timestamp","ask_amount","ask_price","bid_price","bid_amount"]
[1743165345600,0.1452848,85131.0,85130.0,0.02260677]
[1743165345845,0.1452848,85131.0,85130.0,0.19596677]
[1743165346443,0.1452848,85131.0,85130.0,0.17397369]
[1743165346640,0.1452848,85131.0,85130.0,0.00061369]
[1743165346855,0.14813756,85131.0,85130.0,0.00061369]
[1743165347198,0.1452848,85131.0,85130.0,0.00061369]
[1743165348227,0.0619848,85131.0,85130.0,0.00061369]
[1743165349035,0.06483756,85131.0,85130.0,0.00061369]
[1743165349229,0.0619848,85131.0,85130.0,0.00061369]
[1743165350195,0.0003388,85131.0,85130.0,0.00061369]
[1743165350409,0.0120848,85131.0,85130.0,0.00061369]
[1743165350824,0.0003388,85131.0,85130.0,0.11487133]
[1743165351434,0.0120848,85131.0,85130.0,0.11487133]
[1743165352257,0.0120848,85131.0,85130.0,0.00061369]
[1743165352455,0.01493756,85131.0,85130.0,0.17293369]
[1743165352634,0.0120848,85131.0,85130.0,0.17293369]
[1743165353453,0.0120848,85131.0,85130.0,0.00061369]
[1743165353642,0.0120848,85131.0,85130.0,0.17293369]
[1743165355234,0.0120848,85131.0,85130.0,0.17261369]
[1743165355871,0.0120848,85131.0,85130.0,0.00061369]
[1743165356098,0.0120848,85131.0,85130.0,0.17245369]
[1743165356325,0.2470168,85131.0,85130.0,0.17245369]
[1743165356819,0.2470168,85131.0,85130.0,0.00061369]
[1743165357025,0.3279168,85131.0,85130.0,0.00061369]
[1743165357658,0.36339758,85131.0,85130.0,0.00061369]
[1743165358224,0.3279168,85131.0,85130.0,0.00061369]
[1743165358495,0.44217444,85131.0,85130.0,0.00061369]
[1743165360164,0.3279168,85131.0,85130.0,0.00061369]
[1743165361603,0.2470168,85131.0,85130.0,0.00061369]
[1743165363414,0.2470168,85131.0,85128.0,0.0001692]
[1743165363415,0.323283,85129.0,85128.0,8.9e-07]
[1743165363617,0.323283,85129.0,85128.0,9.485e-05]
[1743165363886,0.323283,85129.0,85128.0,8.5e-07]
[1743165363887,0.73754064,85129.0,85128.0,8.5e-07]
[1743165364088,0.85179828,85129.0,85128.0,8.5e-07]
[1743165364267,0.73754064,85129.0,85128.0,8.5e-07]
[1743165365708,0.623283,85129.0,85128.0,8.5e-07]
[1743165366526,0.323283,85129.0,85128.0,8.5e-07]
[1743165366732,0.246683,85129.0,85128.0,0.17036085]
[1743165367655,0.0003388,85131.0,85130.0,0.234934]
[1743165367895,0.0003388,85131.0,85130.0,0.36093764]
[1743165368090,0.0003388,85131.0,85130.0,0.37547849]
[1743165368459,0.0003388,85131.0,85130.0,0.12879849]
[1743165368666,0.0120848,85131.0,85130.0,0.11425764]
[1743165368865,0.0120848,85131.0,85128.0,0.00016985]
[1743165368866,0.011746,85129.0,85128.0,0.00016985]
[1743165369069,0.011746,85129.0,85128.0,0.17136985]
[1743165370570,0.08981014,85129.0,85128.0,0.00016985]
[1743165370774,0.06389876,85129.0,85128.0,0.00016985]
[1743165371004,0.061046,85129.0,85128.0,0.00016985]
[1743165371559,0.1781564,85129.0,85128.0,0.00016985]
[1743165371763,0.47530364,85129.0,85128.0,8.5e-07]
[1743165371970,0.58956128,85129.0,85128.0,8.5e-07]
[1743165373546,0.58956128,85129.0,85091.0,0.002]
[1743165373547,0.546715,85118.0,85111.0,2e-07]
[1743165373765,0.546733,85112.0,85111.0,8.391e-05]
[1743165374519,0.246733,85112.0,85111.0,8.391e-05]
[1743165378747,0.246733,85112.0,85111.0,0.16916391]
[1743165378896,0.246732,85113.0,85111.0,0.16916391]
[1743165379097,0.011749,85112.0,85111.0,0.16916391]
[1743165381503,0.011749,85112.0,85111.0,0.16885301]
[1743165381703,0.0120872,85112.0,85111.0,0.16885301]
[1743165382278,0.0120872,85112.0,85111.0,0.00025301]
[1743165382463,0.01493996,85112.0,85111.0,0.16953301]
[1743165382688,0.0578872,85112.0,85111.0,0.16953301]
[1743165388095,0.0003382,85112.0,85111.0,0.16953301]
[1743165388440,0.0003382,85112.0,85111.0,0.29553965]
[1743165388647,0.0003382,85112.0,85111.0,0.28379065]
[1743165388900,0.0120872,85112.0,85111.0,0.28379065]
[1743165389125,0.2470712,85112.0,85111.0,0.16953301]
[1743165389639,0.2470712,85112.0,85111.0,0.00025301]
[1743165389880,0.2470712,85112.0,85111.0,0.16737301]
[1743165391340,0.0120872,85112.0,85111.0,0.16737301]
[1743165391539,0.2470712,85112.0,85111.0,0.16737301]
[1743165392137,0.0003382,85112.0,85111.0,0.16737301]
[1743165392575,0.2353222,85112.0,85111.0,0.16737301]
[1743165392738,0.0003382,85112.0,85111.0,0.16737301]
[1743165393142,0.0003382,85112.0,85111.0,0.51661765]
[1743165393341,0.0003382,85112.0,85111.0,0.52836665]
[1743165393749,0.2353222,85112.0,85111.0,0.28163065]
[1743165394153,0.2353222,85112.0,85111.0,0.00025301]
[1743165394154,0.2470712,85112.0,85111.0,0.00025301]
[1743165394358,0.2470712,85112.0,85111.0,0.16597301]
[1743165395297,0.0003382,85112.0,85111.0,0.16597301]
[1743165395418,0.0003382,85112.0,85111.0,0.40096001]
[1743165397003,0.0003382,85112.0,85111.0,0.5297585]
[1743165397208,0.0003382,85112.0,85111.0,0.5415075]
[1743165397420,0.2470712,85112.0,85111.0,0.16597301]
[1743165397626,0.2470712,85112.0,85111.0,0.00025301]
[1743165403294,0.3285712,85112.0,85111.0,0.00025301]
[1743165403681,0.6285712,85112.0,85111.0,0.00025301]
[1743165405495,0.3285712,85112.0,85111.0,0.00025301]
[1743165405670,0.2470712,85112.0,85111.0,0.00025301]
[1743165408079,0.44023136,85112.0,85111.0,0.00025301]
[1743165408283,0.45137198,85112.0,85111.0,1e-08]
[1743165408682,0.37246946,85112.0,85111.0,1e-08]
[1743165409235,0.37246946,85112.0,85108.0,0.00081669]
[1743165409236,0.246741,85109.0,85108.0,7e-07]
[1743165409555,0.36099864,85109.0,85108.0,0.00013493]
[1743165410753,0.36099864,85109.0,85108.0,9.3e-07]
[1743165410973,0.311751,85095.0,85087.0,6.5e-07]
[1743165411205,0.647602,85088.0,85087.0,6.5e-07]
[1743165411422,0.76185964,85088.0,85087.0,6.5e-07]
[1743165412181,0.73685964,85088.0,85087.0,6.5e-07]
[1743165416383,0.73685964,85088.0,85087.0,0.00016975]
[1743165416596,0.85111728,85088.0,85087.0,7.5e-07]
[1743165417423,0.623735,85077.0,85076.0,5.8e-07]
[1743165417644,0.73799264,85077.0,85076.0,5.8e-07]
[1743165421505,0.73799264,85077.0,85065.0,0.00094754]
[1743165421506,0.546866,85066.0,85065.0,1.2e-07]
[1743165421707,0.66112364,85066.0,85065.0,1.2e-07]
[1743165422347,0.66112364,85066.0,85054.0,0.00098026]
[1743165422348,0.53513,85059.0,85054.0,5.8e-07]
[1743165422530,0.246927,85045.0,85044.0,9.8e-07]
[1743165423392,0.246927,85045.0,85031.0,0.002]
[1743165423393,0.311758,85044.0,85043.0,9.5e-07]
[1743165423598,0.011758,85044.0,85043.0,9.5e-07]
[1743165423748,0.011758,85044.0,85043.0,0.00044558]
[1743165424355,0.53517,85045.0,85043.0,0.00044558]
[1743165424356,0.23517,85045.0,85043.0,0.00044558]
[1743165424576,0.011758,85044.0,85043.0,0.00044558]
[1743165424777,0.011758,85048.0,85043.0,0.00044558]
[1743165424778,0.0766,85059.0,85043.0,0.00044558]
[1743165424977,0.0766,85059.0,85047.0,0.011758]
[1743165424978,0.235136,85057.0,85047.0,0.011758]
[1743165425211,0.235136,85057.0,85043.0,0.00044558]
[1743165425212,0.011754,85075.0,85060.0,0.011756]
[1743165425422,0.011754,85075.0,85048.0,0.11660905]
[1743165425423,0.235106,85068.0,85056.0,0.19948177]
[1743165425613,0.235106,85068.0,85060.0,0.11425764]
[1743165425614,0.011755,85068.0,85060.0,0.11425764]
[1743165425945,0.011756,85061.0,85060.0,0.11425764]
[1743165426127,0.246863,85068.0,85064.0,0.235115]
[1743165426338,0.246844,85074.0,85067.0,0.011755]
[1743165426559,0.235111,85066.0,85065.0,0.16012]
[1743165426704,0.235126,85061.0,85057.0,0.235135]
[1743165426898,0.235126,85061.0,85058.0,0.27437764]
[1743165427104,0.011755,85066.0,85058.0,0.27437764]
[1743165427322,0.235123,85062.0,85058.0,0.28613364]
[1743165427614,0.235126,85061.0,85058.0,0.27437764]
[1743165427846,0.24688,85062.0,85058.0,0.50950964]
[1743165428024,0.235126,85061.0,85058.0,0.27437764]
[1743165428393,0.011755,85070.0,85065.0,0.011755]
[1743165428567,0.246853,85071.0,85066.0,0.11425764]
[1743165428772,0.246862,85068.0,85066.0,0.11425764]
[1743165428992,0.011755,85067.0,85066.0,0.11425764]
[1743165429193,0.235106,85070.0,85066.0,0.11425764]
[1743165429319,0.235106,85068.0,85066.0,0.11425764]
[1743165429520,0.235097,85072.0,85066.0,0.11425764]
[1743165429521,0.235097,85072.0,85068.0,0.235104]
[1743165429764,0.011754,85071.0,85066.0,0.11425764]
[1743165429970,0.235105,85069.0,85066.0,0.11425764]
[1743165430157,0.235108,85068.0,85066.0,0.11425764]
[1743165430482,0.246863,85068.0,85067.0,0.1594]
[1743165430707,0.246857,85070.0,85067.0,0.27365764]
[1743165431042,0.2354214,85077.0,85071.0,0.011754]
[1743165431241,0.2354214,85077.0,85067.0,0.27365764]
[1743165431242,0.0120924,85077.0,85072.0,0.11425764]
[1743165431465,0.235092,85073.0,85072.0,0.11425764]
[1743165431867,0.246844,85074.0,85072.0,0.11425764]
[1743165432188,0.011754,85073.0,85072.0,0.11439125]
[1743165432485,0.011754,85073.0,85072.0,0.27339125]
[1743165432717,0.011754,85073.0,85072.0,0.00013361]
[1743165432829,0.011754,85073.0,85072.0,0.15901361]
[1743165433543,0.0003384,85077.0,85076.0,0.011754]
[1743165433990,0.0003384,85077.0,85076.0,0.12601164]
[1743165434241,0.0003384,85077.0,85076.0,0.11425764]
[1743165434856,0.0120924,85077.0,85076.0,0.11425764]
[1743165435036,0.246846,85073.0,85072.0,0.00013361]
[1743165435464,0.235087,85075.0,85072.0,0.15893361]
[1743165435673,0.235091,85074.0,85072.0,0.15893361]
[1743165435880,0.2354194,85077.0,85074.0,0.235087]
[1743165436086,0.0003384,85077.0,85075.0,0.36109764]
[1743165436283,0.0003384,85077.0,85076.0,0.02864546]
[1743165436617,0.0003384,85077.0,85076.0,0.74947549]
[1743165436816,0.0003384,85077.0,85076.0,0.29823749]
[1743165437021,0.0003384,85077.0,85076.0,0.14055249]
[1743165437430,0.0003384,85077.0,85076.0,0.56020273]
[1743165437627,0.0003384,85077.0,85076.0,0.55785249]
[1743165437809,0.0003384,85077.0,85076.0,0.85785249]
[1743165439401,0.0003384,85077.0,85076.0,0.8668813]
[1743165440003,0.0003384,85077.0,85076.0,1.1019643]
[1743165440731,0.0003384,85077.0,85076.0,0.8508523]
[1743165441115,0.0003384,85077.0,85076.0,0.6846643]
[1743165441576,0.0003384,85077.0,85076.0,0.71974345]
[1743165441733,0.0003384,85077.0,85076.0,1.04099345]
[1743165441934,0.0003384,85077.0,85076.0,0.92531079]
[1743165442139,0.2471734,85077.0,85076.0,0.14933679]
[1743165442453,0.2471734,85077.0,85076.0,0.30685679]
[1743165442860,0.2471734,85077.0,85076.0,0.03507915]
[1743165443200,0.2471734,85077.0,85076.0,0.15744]
[1743165443405,0.246846,85073.0,85072.0,0.00013361]
[1743165443538,0.246846,85073.0,85072.0,0.15745361]
[1743165444409,0.23509,85074.0,85072.0,0.15745361]
[1743165444578,0.0003384,85077.0,85074.0,0.011754]
[1743165444778,0.0003384,85077.0,85076.0,0.246837]
[1743165444983,0.0003384,85077.0,85076.0,0.90309349]
[1743165445177,0.0003384,85077.0,85076.0,0.64488349]
[1743165446764,0.0003384,85077.0,85076.0,0.37563549]
[1743165446964,0.0003384,85077.0,85076.0,0.50580049]
[1743165447470,0.0003384,85077.0,85076.0,0.54962101]
[1743165448424,0.235031,85095.0,85092.0,0.235039]
[1743165448643,0.01175,85101.0,85091.0,0.235041]
[1743165448644,0.235013,85102.0,85098.0,0.235023]
[1743165448837,0.235006,85105.0,85100.0,0.01175]
[1743165449042,0.0003382,85112.0,85108.0,0.011749]
[1743165449261,0.0003382,85112.0,85110.0,0.234988]
[1743165449473,0.0003382,85112.0,85109.0,0.15652]
[1743165449664,0.011749,85110.0,85109.0,0.15652]
[1743165449888,0.01175,85105.0,85100.0,0.7585291]
[1743165450088,0.23501,85103.0,85102.0,0.15652]
[1743165450286,0.24676,85103.0,85102.0,0.27077764]
[1743165450665,0.24676,85103.0,85102.0,0.11425764]
[1743165450868,0.24676,85103.0,85102.0,0.27061764]
[1743165451064,0.24676,85103.0,85102.0,0.11425764]
[1743165451272,0.246756,85104.0,85102.0,0.27057764]
[1743165451468,0.235003,85106.0,85102.0,0.11425764]
[1743165451676,0.235003,85106.0,85103.0,0.15656]
[1743165451856,0.011748,85116.0,85107.0,0.234997]
[1743165452148,0.011747,85122.0,85110.0,0.246738]
[1743165452251,0.234974,85116.0,85111.0,0.11425764]
[1743165452464,0.246722,85116.0,85111.0,0.11425764]
[1743165452674,0.234976,85115.0,85111.0,0.11425764]
[1743165452940,0.280763,85120.0,85111.0,0.11425764]
[1743165453141,0.23498,85114.0,85111.0,0.11425764]
[1743165453342,0.246728,85114.0,85111.0,0.11425764]
[1743165453899,0.0458,85120.0,85111.0,0.12600664]
[1743165454111,0.234979,85114.0,85111.0,0.11425764]
[1743165454319,0.01222032,85112.0,85111.0,0.11425764]
[1743165454718,0.01222032,85112.0,85111.0,0.27029764]
[1743165454923,0.01222032,85112.0,85103.0,0.235006]
[1743165454924,0.01175,85105.0,85096.0,0.011751]
[1743165455128,0.011749,85108.0,85101.0,0.04382052]
[1743165455129,0.235009,85103.0,85101.0,0.04382052]
[1743165455490,0.235009,85103.0,85102.0,0.11425764]
[1743165456252,0.235009,85103.0,85102.0,0.27009764]
[1743165456669,0.246782,85095.0,85094.0,0.60302052]
[1743165457073,0.246782,85095.0,85094.0,0.04382052]
[1743165457287,0.6758653,85095.0,85094.0,0.04382052]
[1743165457480,0.86562294,85095.0,85094.0,5.2e-07]
[1743165457683,0.246825,85080.0,85079.0,0.15592]
[1743165457903,0.322325,85080.0,85079.0,0.15592]
[1743165459328,0.322325,85080.0,85073.0,0.15572]
[1743165459329,0.246831,85078.0,85073.0,0.15572]
[1743165460129,0.73878864,85078.0,85056.0,0.1031818]
[1743165460328,0.73878864,85078.0,85058.0,0.15576]
[1743165461219,0.73878864,85078.0,85044.0,0.0001692]
[1743165461220,0.73878864,85078.0,85077.0,2e-07]
[1743165461396,0.74378864,85078.0,85077.0,2e-07]
[1743165461622,0.324295,85056.0,85055.0,0.15576]
[1743165462055,0.246927,85045.0,85044.0,0.00061383]
[1743165462257,0.246927,85045.0,85044.0,0.15637383]
[1743165462457,0.246927,85045.0,85044.0,0.00061383]
[1743165463703,0.622727,85045.0,85044.0,0.00061383]
[1743165463850,0.78248464,85045.0,85044.0,0.00061383]
[1743165466576,0.78248464,85045.0,85044.0,8.3e-07]
[1743165466779,0.3,85044.0,85043.0,9.8e-07]
[1743165466957,0.627062,85033.0,85032.0,0.00104568]
[1743165467158,0.82989654,85033.0,85032.0,0.00104568]
[1743165467574,0.74131964,85033.0,85032.0,0.00104568]
[1743165467745,0.78841964,85033.0,85032.0,0.00104568]
[1743165469359,0.546983,85026.0,85025.0,0.0001691]
[1743165469562,0.546994,85022.0,85021.0,5e-07]
[1743165469761,0.77550928,85022.0,85021.0,5e-07]
[1743165469969,0.66125164,85022.0,85021.0,5e-07]
[1743165471221,0.546994,85022.0,85021.0,5e-07]
[1743165471557,0.66125164,85022.0,85021.0,5e-07]
[1743165471760,0.546994,85022.0,85021.0,5e-07]
[1743165473728,0.246994,85022.0,85021.0,5e-07]
[1743165475953,0.44837864,85022.0,85021.0,5e-07]
[1743165476355,0.246994,85022.0,85021.0,5e-07]
[1743165478436,0.36125164,85022.0,85021.0,5e-07]
[1743165479772,0.73785164,85022.0,85021.0,5e-07]
[1743165480328,0.73785164,85022.0,85021.0,0.0001697]
[1743165480870,0.623594,85022.0,85021.0,0.0001697]
[1743165481090,0.0766,85022.0,85021.0,0.0001697]
[1743165481301,0.011761,85022.0,85021.0,0.0001697]
[1743165481780,0.01461376,85022.0,85021.0,0.0001697]
[1743165482260,0.011761,85022.0,85021.0,0.0001697]
[1743165482449,0.41861444,85022.0,85021.0,0.0001697]
[1743165482670,0.60741932,85022.0,85021.0,0.0001697]
[1743165482875,0.50341864,85022.0,85021.0,0.0001697]
[1743165483427,0.50341864,85022.0,85021.0,7e-07]
[1743165487385,0.624394,85022.0,85021.0,7e-07]
[1743165487569,0.546994,85022.0,85021.0,7e-07]
[1743165488352,0.246994,85022.0,85021.0,7e-07]
[1743165491015,0.01176,85032.0,85021.0,7e-07]
[1743165491207,0.001,85022.0,85021.0,0.2352357]
[1743165491463,0.001,85022.0,85021.0,0.2469967]
[1743165491695,0.001,85022.0,85021.0,0.36125434]
[1743165492053,0.011758,85043.0,85034.0,0.01176]
[1743165492054,0.235176,85043.0,85034.0,0.01176]
[1743165492231,0.00078193,85045.0,85038.0,0.235188]
[1743165492433,0.00078193,85045.0,85036.0,0.011759]
[1743165492434,0.00078193,85045.0,85043.0,0.235173]
[1743165492751,0.00078193,85045.0,85035.0,0.15588]
[1743165493078,0.23595193,85045.0,85036.0,0.11425764]
[1743165493581,0.235178,85042.0,85036.0,0.11425764]
[1743165493732,0.00078193,85045.0,85044.0,0.03519636]
[1743165494526,0.00078193,85045.0,85044.0,0.28212636]
[1743165494739,0.00078193,85045.0,85044.0,0.03519636]
[1743165494946,0.24770993,85045.0,85037.0,0.011759]
[1743165495154,0.00078193,85045.0,85044.0,0.002]
[1743165495542,0.00078193,85045.0,85044.0,0.43101564]
[1743165495741,0.00078193,85045.0,85044.0,2.13454949]
[1743165495953,0.00078193,85045.0,85044.0,2.14035867]
[1743165496192,0.00078193,85045.0,85044.0,1.40913267]
[1743165496396,0.00078193,85045.0,85044.0,1.29515967]
[1743165496605,0.235092,85073.0,85063.0,0.235118]
[1743165496606,0.246853,85071.0,85063.0,0.235118]
[1743165496811,0.246853,85071.0,85064.0,0.15584]
[1743165497011,0.011753,85078.0,85071.0,0.235096]
[1743165497211,0.011753,85082.0,85066.0,0.235108]
[1743165497212,0.011754,85076.0,85066.0,0.235108]
[1743165497438,0.011754,85076.0,85064.0,0.15584]
[1743165497439,0.011754,85075.0,85064.0,0.15584]
[1743165497641,0.235075,85080.0,85066.0,0.011755]
[1743165497642,0.235074,85080.0,85066.0,0.011755]
[1743165497852,0.011752,85085.0,85076.0,0.235082]
[1743165498085,0.0184084,85117.0,85076.0,0.235082]
[1743165498086,0.1989,85207.0,85130.0,0.005]
[1743165498284,0.102,85259.0,85143.0,0.601642]
[1743165498285,4.9e-07,85144.0,85143.0,0.601642]
[1743165498482,4.9e-07,85144.0,85143.0,0.03]
[1743165498895,4.9e-07,85144.0,85136.0,0.025]
[1743165498896,0.011745,85140.0,85136.0,0.025]
[1743165499101,0.234915,85137.0,85132.0,0.025]
[1743165499307,0.234915,85137.0,85130.0,0.005]
[1743165499308,0.24668,85131.0,85130.0,0.005]
[1743165499511,0.24668,85131.0,85102.0,0.01175]
[1743165499512,0.24668,85131.0,85129.0,0.025]
[1743165499718,0.0775,85136.0,85129.0,0.025]
[1743165499920,0.0775,85136.0,85131.0,0.005]
[1743165500068,0.011746,85132.0,85131.0,0.005]
[1743165500273,0.011747,85122.0,85121.0,0.025]
[1743165500442,0.246724,85115.0,85114.0,0.03]
[1743165500634,0.246724,85115.0,85104.0,0.55952]
[1743165500635,0.24673,85113.0,85112.0,0.005]
[1743165500832,0.24673,85113.0,85112.0,0.1858]
[1743165501244,0.234976,85115.0,85114.0,0.025]
[1743165501449,0.246716,85118.0,85117.0,0.03]
[1743165501654,0.516864,85150.0,85126.0,0.025]
[1743165501655,0.011746,85131.0,85126.0,0.025]
[1743165501860,0.011747,85127.0,85126.0,0.025]
[1743165502075,0.24669,85127.0,85126.0,0.025]
[1743165502294,0.24669,85127.0,85125.0,0.025]
[1743165502295,0.011747,85126.0,85125.0,0.025]
[1743165502496,0.011747,85126.0,85125.0,0.03]
[1743165503134,0.00044408,85131.0,85130.0,0.041746]
[1743165503342,0.00044408,85131.0,85130.0,0.14425764]
[1743165503831,0.00044408,85131.0,85130.0,0.39093764]
[1743165504041,0.00044408,85131.0,85130.0,0.14425764]
[1743165504217,0.00044408,85131.0,85130.0,0.15600364]
[1743165504367,0.00044408,85131.0,85130.0,0.37919164]
[1743165504938,0.00044408,85131.0,85130.0,0.14825764]
[1743165505724,0.00044408,85131.0,85130.0,0.15225764]
[1743165505927,0.00044408,85131.0,85130.0,0.16400364]
[1743165506335,0.00044408,85131.0,85130.0,0.15225764]
[1743165506541,0.24712208,85131.0,85130.0,0.033]
[1743165506736,0.54712208,85131.0,85130.0,0.008]
[1743165506941,0.54745988,85131.0,85130.0,0.008]
[1743165507097,0.54745988,85131.0,85130.0,0.004]
[1743165507304,0.54745988,85131.0,85130.0,0.007]
[1743165507715,0.54745988,85131.0,85130.0,0.003]
[1743165507938,0.546695,85125.0,85124.0,0.005]
[1743165508276,0.246692,85127.0,85126.0,0.03]
[1743165508878,0.00178188,85131.0,85130.0,0.03]
[1743165509650,0.00078188,85131.0,85130.0,0.03]
[1743165510744,0.01252788,85131.0,85130.0,0.03]
[1743165511067,0.00078188,85131.0,85130.0,0.031]
[1743165511291,0.00078188,85131.0,85130.0,0.14525764]
[1743165511498,0.00078188,85131.0,85130.0,0.14725764]
[1743165511705,0.00078188,85131.0,85130.0,0.15900364]
[1743165511915,0.00078188,85131.0,85130.0,0.16035282]
[1743165512274,0.00078188,85131.0,85130.0,0.16100364]
[1743165512493,0.00078188,85131.0,85130.0,0.15800364]
[1743165512690,0.00078188,85131.0,85130.0,0.14625764]
[1743165512843,0.00078188,85131.0,85130.0,0.14925764]
[1743165513243,0.00078188,85131.0,85130.0,0.035]
[1743165513442,0.00078188,85131.0,85130.0,0.033]
[1743165513646,0.00078188,85131.0,85130.0,0.036]
[1743165514257,0.00078188,85131.0,85130.0,0.044746]
[1743165514802,0.00078188,85131.0,85130.0,0.16300364]
[1743165514988,0.00078188,85131.0,85130.0,0.15125764]
[1743165515607,0.24745988,85131.0,85130.0,0.037]
[1743165516056,0.24745988,85131.0,85130.0,0.032]
[1743165516924,0.32275988,85131.0,85130.0,0.004]
[1743165517125,0.246726,85114.0,85109.0,0.025]
[1743165517356,0.246739,85110.0,85109.0,0.03]
[1743165517782,0.246739,85110.0,85101.0,0.15568]
[1743165517783,0.246751,85106.0,85105.0,0.005]
[1743165518197,0.246751,85106.0,85105.0,0.03]
[1743165518377,0.246711,85120.0,85118.0,0.005]
[1743165518530,0.060548,85119.0,85118.0,0.005]
[1743165518758,0.08782788,85131.0,85130.0,0.025]
[1743165519280,0.09068064,85131.0,85130.0,0.0251688]
[1743165519481,0.08782788,85131.0,85130.0,0.0001688]
[1743165520414,0.01252788,85131.0,85130.0,0.0001688]
[1743165520708,0.01252788,85131.0,85130.0,0.14442644]
[1743165520709,0.00378188,85131.0,85130.0,0.14442644]
[1743165521352,0.00378188,85131.0,85130.0,0.15617244]
[1743165521353,0.00578188,85131.0,85130.0,0.15617244]
[1743165521525,0.00278188,85131.0,85130.0,0.14442644]
[1743165521827,0.00278188,85131.0,85130.0,0.16017244]
[1743165522145,0.00278188,85131.0,85130.0,0.14842644]
[1743165522490,0.00278188,85131.0,85130.0,0.16017244]
[1743165522903,0.00278188,85131.0,85130.0,0.14842644]
[1743165523505,0.00078188,85131.0,85130.0,0.0321688]
[1743165523719,0.00078188,85131.0,85130.0,0.0301688]
[1743165523930,0.00078188,85131.0,85130.0,0.1898088]
[1743165524600,0.00078188,85131.0,85130.0,0.1908088]
[1743165525023,0.00078188,85131.0,85130.0,0.1938088]
[1743165525728,0.01252788,85131.0,85130.0,0.0381688]
[1743165526385,0.01175,85105.0,85097.0,0.02363768]
[1743165526574,0.3,85098.0,85088.0,0.011752]
[1743165526703,0.23506,85085.0,85074.0,0.011754]
[1743165526911,0.011753,85081.0,85073.0,0.1031818]
[1743165527176,0.246837,85076.0,85075.0,0.15564]
[1743165527542,0.246833,85078.0,85075.0,0.15564]
[1743165527744,0.246787,85094.0,85080.0,0.246824]
[1743165527968,0.011752,85091.0,85081.0,0.11425764]
[1743165528187,0.235049,85089.0,85082.0,0.235067]
[1743165528314,0.235051,85088.0,85083.0,0.26989764]
[1743165529206,0.235055,85087.0,85083.0,0.26989764]
[1743165529345,0.246809,85086.0,85083.0,0.26989764]
[1743165529889,0.246809,85086.0,85082.0,0.01758095]
[1743165529890,0.246817,85083.0,85082.0,0.01758095]
[1743165530218,0.246817,85083.0,85082.0,0.17322095]
[1743165530441,0.246817,85083.0,85081.0,0.002]
[1743165530442,0.011753,85082.0,85081.0,9.5e-07]
[1743165530644,0.246843,85074.0,85061.0,0.002]
[1743165531103,0.246843,85074.0,85073.0,0.10331541]
[1743165531305,0.011753,85080.0,85073.0,0.10331541]
[1743165531476,0.011754,85075.0,85073.0,0.10331541]
[1743165531637,0.011754,85074.0,85073.0,0.10331541]
[1743165531837,0.014754,85074.0,85073.0,0.10331541]
[1743165532228,0.003,85074.0,85073.0,0.10331541]
[1743165532432,0.003,85074.0,85073.0,0.25899541]
[1743165533277,0.246841,85075.0,85073.0,0.25899541]
[1743165533571,0.248841,85075.0,85073.0,0.25899541]
[1743165533775,0.002,85075.0,85073.0,0.25899541]
[1743165533958,0.003,85074.0,85073.0,0.25899541]
[1743165535001,0.005,85074.0,85073.0,0.27074941]
[1743165535205,0.005,85074.0,85073.0,0.25899541]
[1743165535206,0.013754,85074.0,85073.0,0.25899541]
[1743165535617,0.014754,85074.0,85073.0,0.25899541]
[1743165536582,0.003,85074.0,85073.0,0.25899541]
[1743165537996,0.014754,85074.0,85073.0,0.25899541]
[1743165538500,0.003,85074.0,85073.0,0.25899541]
[1743165538921,0.003,85074.0,85073.0,0.10331541]
[1743165539124,0.003,85074.0,85073.0,0.62009905]
[1743165540299,0.003,85074.0,85073.0,0.37325305]
[1743165540521,0.014754,85074.0,85073.0,0.25899541]
[1743165540851,0.014754,85074.0,85073.0,0.10331541]
[1743165541520,0.249843,85074.0,85073.0,0.10331541]
[1743165542140,0.249843,85074.0,85073.0,0.00013361]
[1743165543143,0.249843,85074.0,85073.0,0.00030251]
[1743165545555,0.003,85074.0,85073.0,0.24714851]
[1743165545786,0.014754,85074.0,85073.0,0.00030251]
[1743165546066,0.249843,85074.0,85073.0,0.00030251]
[1743165546206,0.238089,85074.0,85073.0,0.00030251]
[1743165546879,0.249843,85074.0,85073.0,0.00030251]
[1743165548061,0.249843,85074.0,85073.0,0.34965215]
[1743165548062,0.003,85074.0,85073.0,0.34965215]
[1743165548262,0.003,85074.0,85073.0,0.36140615]
[1743165548796,0.003,85074.0,85073.0,1.113161]
[1743165549037,0.236089,85074.0,85073.0,0.11456015]
[1743165549237,0.236089,85074.0,85073.0,0.00030251]
[1743165549410,0.246843,85074.0,85073.0,0.00130251]
[1743165549645,0.246843,85074.0,85073.0,0.00330251]
[1743165549975,0.246843,85074.0,85073.0,0.00230251]
[1743165550376,0.246843,85074.0,85073.0,0.16098251]
[1743165550923,0.246843,85074.0,85073.0,0.15798251]
[1743165551147,0.246843,85074.0,85073.0,0.00230251]
[1743165551434,0.246843,85074.0,85073.0,0.00630251]
[1743165551639,0.246843,85074.0,85073.0,0.00030251]
[1743165552202,0.246843,85074.0,85073.0,0.00230251]
[1743165552550,0.246843,85074.0,85073.0,0.00430251]
[1743165553300,0.246843,85074.0,85073.0,0.00230251]
[1743165553741,0.246843,85074.0,85073.0,0.00330251]
[1743165554159,0.246843,85074.0,85073.0,0.00230251]
[1743165554359,0.246843,85074.0,85073.0,0.00030251]
[1743165555400,0.235089,85074.0,85073.0,0.00030251]
[1743165555633,0.001,85074.0,85073.0,0.36140415]
[1743165557097,0.000338,85081.0,85079.0,0.235075]
[1743165557486,0.000338,85081.0,85080.0,0.34932964]
[1743165557885,0.000338,85081.0,85080.0,0.36108264]
[1743165558626,0.000338,85081.0,85073.0,0.00130251]
[1743165558627,0.011754,85076.0,85073.0,0.00130251]
[1743165558829,0.246843,85074.0,85073.0,0.00130251]
[1743165559052,0.246843,85074.0,85073.0,0.15698251]
[1743165559257,0.328643,85074.0,85073.0,0.15598251]
[1743165559802,0.328643,85074.0,85073.0,0.00030251]
[1743165560244,0.235089,85074.0,85073.0,0.00030251]
[1743165560415,0.235087,85075.0,85073.0,0.00030251]
[1743165560615,0.246841,85075.0,85073.0,0.00030251]
[1743165560844,0.237089,85074.0,85073.0,0.00130251]
[1743165561045,0.002,85074.0,85073.0,0.00130251]
[1743165561180,0.235087,85075.0,85073.0,0.00130251]
[1743165561365,0.001,85074.0,85073.0,0.00130251]